bitfinex/quotes_ETHUSD_20251221
["timestamp","ask_amount","ask_price","bid_price","bid_amount"]
[1766316826452,1.2678,3001.8,3001.5,0.9468]
[1766316827785,1.2678,3001.8,3001.4,0.3461]
[1766316828080,0.321,3001.8,3001.4,1.2929]
[1766316828673,0.413,3001.7,3001.4,1.2929]
[1766316832983,0.002,3001.8,3001.4,1.2929]
[1766316833784,0.323,3001.8,3001.4,1.2929]
[1766316835389,0.002,3001.8,3001.4,1.2929]
[1766316836888,0.002,3001.8,3000.7,0.413]
[1766316837087,0.002,3001.8,3001.0,0.9468]
[1766316837599,0.002,3001.8,3001.0,1.2929]
[1766316837797,0.002,3001.8,3000.9,0.9468]
[1766316837971,0.002,3001.8,3000.8,0.413]
[1766316838295,0.002,3001.8,3001.1,1.2929]
[1766316838888,0.002,3001.8,3000.8,0.413]
[1766316839067,0.002,3001.8,3001.4,0.001]
[1766316842207,0.002,3001.8,3001.5,1.2929]
[1766316842571,0.002,3001.8,3001.4,0.001]
[1766316850408,0.002,3001.8,3001.4,1.3486]
[1766316851909,0.002,3001.8,3001.4,0.001]
[1766316853608,0.002,3001.8,3000.7,0.411]
[1766316853812,0.002,3001.8,3000.9,1.3476]
[1766316854011,0.002,3001.8,3000.9,0.3507]
[1766316854318,0.002,3001.8,3001.0,1.3476]
[1766316854906,0.002,3001.8,3001.4,0.001]
[1766316865726,0.0268794,3001.8,3001.4,0.001]
[1766316866631,0.002,3001.8,3001.4,0.001]
[1766316866832,0.0248794,3001.7,3001.4,0.001]
[1766316867032,0.002,3001.8,3001.4,0.001]
[1766316867333,0.0248794,3001.7,3001.4,0.001]
[1766316867631,0.002,3001.8,3001.4,0.001]
[1766316868010,0.0248794,3001.7,3001.4,0.001]
[1766316868226,0.002,3001.8,3001.4,0.001]
[1766316868430,0.0248794,3001.7,3001.4,0.001]
[1766316868603,0.0248794,3001.7,3000.7,1.3511]
[1766316869251,0.0248794,3001.7,3000.5,1.3511]
[1766316869451,0.0268794,3001.8,3000.6,0.17621]
[1766316869726,0.6927588,3001.8,3000.6,0.17621]
[1766316870111,0.6678794,3001.8,3000.4,0.001]
[1766316870316,0.002,3001.8,3000.4,1.3521]
[1766316870516,0.13352672,3001.7,3000.4,1.3521]
[1766316871226,0.13352672,3001.7,3001.4,0.001]
[1766316871428,0.13352672,3001.7,3000.5,1.3511]
[1766316871940,0.13352672,3001.7,3000.4,0.001]
[1766316872103,0.13352672,3001.7,3000.6,0.3798]
[1766316872308,0.13352672,3001.7,3000.6,1.3511]
[1766316875845,0.13352672,3001.7,3000.5,1.3116]
[1766316876150,0.32,3001.6,3000.8,0.3471]
[1766316876334,0.32,3001.6,3000.9,1.3116]
[1766316876839,0.64,3001.6,3000.9,1.3116]
[1766316880950,0.64,3001.6,3000.6,0.3471]
[1766316881152,0.64,3001.6,3000.9,1.3116]
[1766316883252,0.32,3001.6,3000.9,1.3116]
[1766316883427,0.639,3001.6,3000.4,0.001]
[1766316883753,0.639,3001.6,3000.7,0.9645]
[1766316883952,0.319,3001.6,3000.8,1.3116]
[1766316885864,0.319,3001.6,3000.6,0.3471]
[1766316886025,0.319,3001.6,3000.6,1.3116]
[1766316887559,0.319,3001.6,3000.7,0.3471]
[1766316887757,0.319,3001.6,3000.7,1.3116]
[1766316890246,0.319,3001.6,3000.4,0.001]
[1766316890962,0.319,3001.6,3000.7,0.9645]
[1766316891132,0.319,3001.6,3000.8,1.3116]
[1766316893466,0.319,3001.6,3000.6,0.3471]
[1766316893648,0.319,3001.6,3000.6,1.3116]
[1766316895963,0.319,3001.6,3000.6,0.3471]
[1766316896160,0.319,3001.6,3000.7,0.9645]
[1766316896364,0.319,3001.6,3000.7,1.3116]
[1766316901063,0.319,3001.6,3000.4,0.001]
[1766316901257,0.319,3001.6,3000.7,0.9645]
[1766316901560,0.319,3001.6,3000.9,1.3116]
[1766316901768,0.319,3001.6,3000.4,0.001]
[1766316901962,0.319,3001.6,3000.5,0.9645]
[1766316902164,0.319,3001.6,3000.8,0.3471]
[1766316902469,0.319,3001.6,3001.0,1.3116]
[1766316904269,0.319,3001.6,3000.7,0.9645]
[1766316904468,0.002,3001.7,3000.9,0.9645]
[1766316904668,0.002,3001.7,3001.2,1.3116]
[1766316904966,0.002,3001.7,3000.9,0.9779]
[1766316905139,0.002,3001.7,3000.4,0.001]
[1766316905140,0.002,3001.7,3001.3,0.9779]
[1766316905340,0.002,3001.7,3001.3,1.353]
[1766316910176,0.002,3001.7,3001.3,1.354]
[1766316910748,0.002,3001.7,3001.3,0.001]
[1766316918190,0.002,3001.7,3001.3,1.354]
[1766316920394,0.002,3001.7,3001.3,0.001]
[1766316950206,0.002,3001.7,3001.4,1.2711]
[1766316955114,0.002,3001.7,3001.3,0.001]
[1766316955115,0.002,3001.7,3001.5,1.2711]
[1766316955617,0.002,3001.7,3001.3,1.2721]
[1766316956521,0.002,3001.7,3001.4,1.2711]
[1766316957323,0.002,3001.7,3001.4,1.2721]
[1766316964404,0.002,3001.7,3001.5,1.2711]
[1766316966529,0.002,3001.7,3001.6,0.3733]
[1766316966943,0.002,3001.7,3001.5,1.3627]
[1766316967933,0.002,3001.7,3001.4,0.001]
[1766316970717,0.002,3001.7,3001.4,1.3637]
[1766316976944,0.002,3001.7,3001.5,1.3627]
[1766316978344,0.32,3001.8,3001.4,0.001]
[1766316978650,0.32,3001.8,3001.6,1.3627]
[1766316980047,0.32,3001.8,3001.4,0.001]
[1766316980247,0.002,3001.8,3001.4,0.001]
[1766316980447,0.32,3001.7,3001.4,0.001]
[1766316981749,0.322,3001.7,3001.4,0.001]
[1766316982042,0.002,3001.7,3001.4,0.001]
[1766316982449,0.322,3001.6,3001.4,0.001]
[1766317004374,0.322,3001.6,3001.4,1.2722]
[1766317007190,0.322,3001.6,3001.4,0.001]
[1766317014880,0.322,3001.6,3001.4,1.2722]
[1766317015076,0.002,3001.7,3001.5,1.2712]
[1766317015279,0.322,3001.6,3001.5,1.2712]
[1766317015458,0.002,3001.7,3001.5,1.2712]
[1766317015785,0.324,3001.7,3001.5,1.2712]
[1766317016283,0.324,3001.7,3001.4,0.001]
[1766317016579,0.002,3001.7,3001.6,0.3518]
[1766317017083,0.002,3001.7,3001.5,0.9194]
[1766317017584,0.002,3001.7,3001.4,0.3528]
[1766317017785,0.002,3001.7,3001.4,0.001]
[1766317018499,0.328,3001.7,3001.4,0.001]
[1766317021385,0.0248794,3002.4,3001.4,0.001]
[1766317021573,0.002,3002.7,3001.5,0.9194]
[1766317021780,0.002,3002.7,3001.4,0.001]
[1766317022089,1.2364,3002.4,3001.7,0.9194]
[1766317022285,0.23975339,3002.3,3001.8,1.2712]
[1766317022862,1.00105945,3002.2,3001.4,0.001]
[1766317023062,1.00105945,3002.2,3001.7,0.9194]
[1766317023263,1.00105945,3002.2,3001.9,0.9194]
[1766317023472,1.00105945,3002.2,3001.9,1.2712]
[1766317023985,1.00105945,3002.2,3001.4,0.001]
[1766317024192,0.319,3002.5,3001.6,0.3518]
[1766317024388,0.9204,3002.4,3002.0,0.3518]
[1766317024591,0.9204,3002.4,3002.1,1.2712]
[1766317025092,0.9204,3002.4,3002.1,0.834225]
[1766317025394,0.9204,3002.4,3002.1,0.43115682]
[1766317029501,0.9224,3002.4,3002.2,1.334]
[1766317029995,0.002,3002.4,3002.2,1.083875]
[1766317030190,0.9244,3002.4,3002.2,1.083875]
[1766317034104,0.9244,3002.4,3001.6,0.9244]
[1766317034105,0.9244,3002.4,3001.7,1.334]
[1766317034305,0.9244,3002.4,3001.8,0.9772]
[1766317034597,0.9244,3002.4,3002.0,1.334]
[1766317040702,0.9244,3002.4,3001.7,0.22584]
[1766317040877,0.9244,3002.4,3002.1,0.3568]
[1766317041076,0.9244,3002.4,3002.1,1.334]
[1766317041404,0.9244,3002.4,3001.9,0.9772]
[1766317041605,0.002,3002.4,3002.1,0.9772]
[1766317041786,0.002,3002.4,3002.2,1.334]
[1766317042499,0.319,3002.4,3002.2,1.334]
[1766317042879,0.319,3002.4,3001.7,0.9244]
[1766317043076,0.319,3002.4,3002.0,0.9772]
[1766317043276,0.319,3002.4,3001.7,0.9244]
[1766317043472,0.319,3002.4,3002.0,0.9772]
[1766317043677,0.319,3002.4,3002.1,0.3568]
[1766317044987,0.319,3002.4,3002.1,1.3182]
[1766317051002,0.002,3002.4,3002.0,0.001]
[1766317051198,0.002,3002.4,3002.1,1.3011]
[1766317051507,0.002,3002.4,3002.0,0.001]
[1766317051809,0.002,3002.8,3002.2,0.9614]
[1766317052009,0.002,3002.8,3002.6,1.3011]
[1766317054717,0.002,3002.8,3002.2,0.715]
[1766317055013,0.002,3002.8,3002.3,1.3011]
[1766317055813,0.002,3002.8,3002.0,1.3156]
[1766317056025,0.002,3002.8,3002.0,0.001]
[1766317056317,0.715,3002.7,3002.0,0.001]
[1766317068933,0.0248794,3002.6,3001.5,1.7096]
[1766317069231,0.317,3002.5,3001.5,0.63766]
[1766317069432,0.317,3002.5,3001.6,1.3146]
[1766317070728,0.317,3002.5,3001.5,0.395]
[1766317070729,0.0248794,3002.4,3001.5,0.395]
[1766317071421,0.0248794,3002.4,3001.4,1.3156]
[1766317072031,0.317,3002.5,3001.4,1.3156]
[1766317073130,0.715,3002.3,3001.4,1.3156]
[1766317073828,0.715,3002.3,3001.4,0.82225]
[1766317077443,0.715,3002.3,3001.4,0.9764]
[1766317077736,0.715,3002.3,3001.5,1.3146]
[1766317078111,0.715,3002.3,3001.3,0.001]
[1766317078327,0.715,3002.3,3001.6,0.9764]
[1766317078531,0.715,3002.3,3001.3,0.001]
[1766317078740,0.715,3002.3,3001.4,0.9764]
[1766317078926,0.715,3002.3,3001.7,0.3382]
[1766317079127,0.715,3002.3,3001.7,1.3146]
[1766317079624,0.715,3002.3,3001.3,0.001]
[1766317079824,0.715,3002.3,3001.5,0.3382]
[1766317080027,0.715,3002.3,3001.5,1.3146]
[1766317081148,0.7398794,3002.3,3001.3,0.001]
[1766317081447,0.0248794,3002.2,3000.8,0.001]
[1766317081748,0.7647588,3002.2,3000.8,0.9774]
[1766317082129,0.7398794,3002.2,3000.8,0.9774]
[1766317082330,0.7398794,3002.2,3000.8,1.14674]
[1766317083123,0.7398794,3002.2,3000.9,0.3382]
[1766317083319,0.2,3001.9,3000.7,0.716]
[1766317083519,30.0,3001.7,3000.4,0.001]
[1766317083831,3.05896734,3001.6,3000.4,0.001]
[1766317084031,0.0248794,3001.6,3000.4,0.001]
[1766317084755,30.0,3001.6,3000.4,0.001]
[1766317084949,0.13353697,3001.5,3000.4,0.001]
[1766317086044,0.13353697,3001.5,3001.3,0.001]
[1766317086457,0.13353697,3001.5,3000.4,0.001]
[1766317086763,0.0248794,3001.4,3000.4,0.001]
[1766317087452,0.21332445,3001.3,3000.4,1.3318]
[1766317087951,0.21332445,3001.3,3000.3,0.001]
[1766317089929,0.21332445,3001.3,3000.4,1.3308]
[1766317091655,0.21332445,3001.3,3000.4,0.2911125]
[1766317093863,0.21332445,3001.3,3000.4,1.2689125]
[1766317100162,0.21332445,3001.3,3000.4,1.3308]
[1766317100552,0.316,3001.2,3000.5,1.3308]
[1766317102066,0.316,3001.2,3000.3,0.001]
[1766317102277,0.316,3001.2,3000.3,1.3318]
[1766317103338,0.316,3001.1,3000.3,1.3318]
[1766317105065,0.316,3001.1,3000.3,1.165325]
[1766317108041,0.632,3001.1,3000.4,0.03332888]
[1766317108260,0.316,3001.1,3000.3,0.9716]
[1766317108564,0.316,3001.3,3000.5,0.9716]
[1766317109571,0.316,3001.2,3000.5,0.9716]
[1766317110272,0.316,3001.2,3000.6,1.3233]
[1766317111669,0.316,3001.2,3000.5,1.3233]
[1766317112671,0.316,3001.2,3000.4,0.001]
[1766317112872,0.316,3001.2,3000.6,0.3517]
[1766317113167,0.316,3001.2,3000.6,1.3233]
[1766317114539,0.3408794,3001.2,3000.6,1.3233]
[1766317114972,0.0248794,3001.2,3000.6,1.3233]
[1766317115184,0.0248794,3001.2,3000.2,0.001]
[1766317115185,0.3408794,3001.1,3000.2,0.001]
[1766317115475,0.3408794,3001.1,2999.8,0.001]
[1766317115476,0.0248794,3001.0,2999.8,0.001]
[1766317115641,0.3408794,3001.1,2999.9,1.3393]
[1766317115841,0.318,3001.3,3000.1,1.3383]
[1766317116042,0.002,3001.3,3000.2,0.03333111]
[1766317116243,0.6568794,3001.2,3000.5,0.9682]
[1766317116471,0.6568794,3001.2,3000.5,1.3383]
[1766317117377,0.316,3001.1,3000.5,1.3383]
[1766317119171,0.3408794,3001.0,3000.5,1.3383]
[1766317122284,0.3408794,3001.0,3000.1,0.9682]
[1766317122487,0.3408794,3001.0,3000.4,0.3701]
[1766317122669,0.3408794,3001.0,3000.5,1.3383]
[1766317122874,0.3408794,3001.0,3000.2,0.3701]
[1766317123074,0.3408794,3001.0,3000.4,0.3701]
[1766317123267,0.3408794,3001.0,3000.5,1.3383]
[1766317123672,0.318,3001.3,3000.5,1.3383]
[1766317123984,0.3408794,3001.2,3000.5,1.3383]
[1766317124389,0.3408794,3001.2,3000.1,0.3408794]
[1766317124684,0.3408794,3001.2,3000.4,0.9682]
[1766317124865,0.3408794,3001.2,3000.6,1.3383]
[1766317127171,0.3408794,3001.2,3000.1,0.3408794]
[1766317127367,0.3408794,3001.2,3000.5,0.3701]
[1766317127682,0.3408794,3001.2,3000.7,0.3701]
[1766317127859,0.3408794,3001.2,3000.7,1.3383]
[1766317132196,0.3408794,3001.2,3000.2,0.3701]
[1766317132360,0.3408794,3001.2,3000.3,0.9682]
[1766317133987,0.3408794,3001.2,3000.3,1.00153]
[1766317134192,0.318,3001.3,3000.3,0.9682]
[1766317134387,0.318,3001.3,3000.5,0.9682]
[1766317134564,0.318,3001.3,3000.7,0.9682]
[1766317134890,0.318,3001.3,3000.8,1.3383]
[1766317136791,0.318,3001.3,3000.4,0.9682]
[1766317137083,0.318,3001.3,3000.7,0.3701]
[1766317137293,0.002,3001.3,3000.8,0.3701]
[1766317137459,0.316,3001.7,3000.9,0.3701]
[1766317137666,0.316,3001.7,3001.3,0.3701]
[1766317137886,0.316,3001.7,3001.3,1.3383]
[1766317138975,0.316,3001.7,3000.7,1.00132675]
[1766317139308,1.1591339,3002.0,3001.3,1.3383]
[1766317139604,0.316,3001.9,3001.3,1.3383]
[1766317139777,0.56363704,3001.9,3001.3,1.3383]
[1766317140818,0.002,3001.7,3001.3,1.3383]
[1766317141817,0.002,3001.7,3000.8,0.39]
[1766317142012,0.002,3001.7,3000.9,1.3383]
[1766317142327,0.002,3001.7,3001.1,0.9682]
[1766317142614,0.002,3001.7,3001.1,1.3383]
[1766317148522,0.002,3001.7,3001.0,0.3748]
[1766317148710,0.002,3001.7,3001.2,1.324]
[1766317149021,0.002,3001.7,3001.3,1.324]
[1766317150629,0.002,3001.7,3001.0,0.1714]
[1766317150923,0.002,3001.7,3001.4,0.9492]
[1766317151094,0.002,3001.7,3001.4,1.324]
[1766317152396,0.002,3001.7,3000.8,0.39]
[1766317152593,0.002,3001.7,3001.1,0.9492]
[1766317152823,0.002,3001.7,3001.1,1.324]
[1766317153094,0.002,3001.7,3000.9,1.324]
[1766317153297,0.002,3001.7,3001.2,0.3748]
[1766317153496,0.002,3001.7,3001.2,1.324]
[1766317156129,1.1591339,3002.0,3001.0,0.001]
[1766317156130,1.1591339,3002.0,3001.1,0.9492]
[1766317156341,0.002,3002.6,3001.2,0.39]
[1766317156517,0.319,3002.6,3001.3,1.324]
[1766317156718,0.0248794,3002.5,3001.5,1.324]
[1766317156924,0.319,3002.6,3001.5,1.324]
[1766317158531,0.002,3002.6,3001.5,1.324]
[1766317158732,0.317,3002.3,3001.3,1.324]
[1766317158932,0.317,3002.3,3001.5,0.9492]
[1766317159137,0.317,3002.3,3001.5,1.324]
[1766317160037,0.317,3002.3,3001.4,0.319]
[1766317160333,0.317,3002.3,3001.6,0.3748]
[1766317160537,0.317,3002.3,3001.6,1.324]
[1766317162244,0.319,3002.3,3001.6,1.324]
[1766317163038,0.319,3002.3,3001.3,1.324]
[1766317163228,0.319,3002.3,3001.4,1.324]
[1766317164518,0.3438794,3002.3,3001.1,1.324]
[1766317165411,30.0,3002.2,3001.0,0.001]
[1766317165640,3.05926734,3002.1,3001.0,0.001]
[1766317165830,0.0248794,3002.1,3001.0,0.001]
[1766317166010,30.0,3002.2,3001.0,0.001]
[1766317167532,30.0,3002.2,3001.0,1.2893]
[1766317168734,15.36284,3002.2,3001.0,1.2893]
[1766317178573,0.0248794,3002.1,3001.0,0.001]
[1766317178881,1.53877194,3002.0,3001.0,0.001]
[1766317179042,1.4781339,3002.3,3001.0,0.001]
[1766317179043,0.3428794,3001.9,3001.0,0.001]
[1766317182457,0.3428794,3001.9,3000.7,1.3172]
[1766317182772,0.3428794,3001.9,3000.6,0.389]
[1766317183363,0.3428794,3001.9,3000.8,0.341]
[1766317183571,0.3428794,3001.9,3000.8,1.3172]
[1766317183771,0.7318794,3001.9,3000.8,1.3172]
[1766317183970,30.0,3001.8,3000.3,1.00137355]
[1766317184172,3.09806734,3001.7,3000.3,1.00137355]
[1766317184368,0.0248794,3001.7,3000.1,0.389]
[1766317184574,1.02625295,3001.8,3000.5,0.341]
[1766317184755,1.02625295,3001.8,3000.6,1.3172]
[1766317188148,1.02625295,3001.8,3000.8,0.001]
[1766317189371,0.0248794,3001.8,3000.8,0.001]
[1766317189580,1.00140363,3001.7,3000.8,0.001]
[1766317189884,0.0248794,3001.6,3000.8,0.001]
[1766317191375,0.0248794,3001.8,3000.8,0.001]
[1766317191687,1.00140363,3001.7,3000.8,0.001]
[1766317191860,0.0248794,3001.6,3000.8,0.001]
[1766317193886,1.00140363,3001.7,3000.8,0.001]
[1766317194272,1.00140363,3001.7,3000.8,1.3182]
[1766317194573,1.00140363,3001.7,3000.8,0.001]
[1766317199397,1.00340363,3001.7,3000.8,0.001]
[1766317201096,1.00340363,3001.7,3000.8,1.3182]
[1766317201494,1.00340363,3001.7,3000.9,1.3172]
[1766317205298,0.319,3001.6,3001.0,0.3688]
[1766317205499,0.319,3001.6,3001.0,1.3179]
[1766317206205,1.00140363,3001.6,3000.9,0.9491]
[1766317206370,0.32,3001.5,3001.2,1.3179]
[1766317206571,0.32,3001.4,3000.8,0.001]
[1766317206895,0.32,3001.4,3000.9,1.3179]
[1766317207973,0.32,3001.4,3000.8,0.001]
[1766317208574,0.0248794,3001.3,3000.8,0.001]
[1766317209915,0.32,3001.4,3000.8,0.001]
[1766317212795,0.32,3001.4,3000.8,1.3189]
[1766317213913,0.32,3001.4,3000.8,0.001]
[1766317214285,0.9759794,3001.5,3000.8,0.001]
[1766317214486,0.32,3001.4,3000.8,0.001]
[1766317215310,0.9759794,3001.5,3000.8,0.001]
[1766317215613,0.32,3001.4,3000.9,1.3179]
[1766317215814,0.32,3001.3,3000.9,1.3179]
[1766317216209,0.9759794,3001.5,3000.9,1.3179]
[1766317216414,0.32,3001.2,3000.9,1.3179]
[1766317217111,0.9759794,3001.5,3000.8,0.001]
[1766317217317,0.32,3001.4,3001.0,1.3179]
[1766317217613,0.32,3001.4,3001.2,1.3179]
[1766317218292,0.32,3001.4,3000.8,0.001]
[1766317218612,0.32,3001.4,3001.0,1.3179]
[1766317221123,0.32,3001.4,3000.8,1.3189]
[1766317227724,0.32,3001.4,3000.9,1.271]
[1766317228221,0.32,3001.4,3000.9,0.9045]
[1766317228827,0.32,3001.4,3001.2,1.271]
[1766317230229,0.002,3001.6,3001.2,1.271]
[1766317230399,0.32,3001.5,3001.2,1.271]
[1766317231502,0.32,3001.5,3000.3,1.271]
[1766317231902,0.32,3001.5,3000.0,0.001]
[1766317232729,0.39,3001.4,3000.3,0.9045]
[1766317232930,0.39,3001.4,3000.0,0.001]
[1766317233403,0.39,3001.4,3000.1,1.271]
[1766317233823,0.39,3001.4,3000.3,0.9045]
[1766317234024,0.39,3001.4,3000.5,0.9045]
[1766317234228,0.39,3001.4,3000.5,1.271]
[1766317238335,0.39,3001.4,3000.0,0.001]
[1766317238519,0.39,3001.4,3000.2,0.35]
[1766317238707,0.39,3001.4,3000.3,0.9583]
[1766317238907,0.39,3001.4,3000.4,1.3083]
[1766317240143,0.4148794,3001.4,3000.0,0.001]
[1766317240342,0.4148794,3001.4,3000.2,0.35]
[1766317240517,0.0248794,3001.4,3000.2,1.3083]
[1766317240723,0.35,3001.3,3000.2,1.3083]
[1766317242844,0.35,3001.3,3000.0,0.001]
[1766317242845,0.2,3001.2,3000.0,0.001]
[1766317243141,0.21332445,3001.2,3000.0,0.001]
[1766317243912,0.35,3001.1,3000.0,0.001]
[1766317244834,0.01332445,3000.9,2999.8,0.001]
[1766317245009,0.01332445,3000.9,2999.6,0.001]
[1766317245010,30.0,3000.6,2999.6,0.001]
[1766317245207,3.00133245,3000.5,2999.6,0.001]
[1766317245426,0.133578,3000.5,2999.6,0.001]
[1766317245613,0.133578,3000.5,2999.5,0.001]
[1766317245815,30.0,3000.6,2999.3,1.3083]
[1766317246014,0.01332445,3000.5,2999.3,1.3083]
[1766317247349,0.21332445,3000.4,2999.3,1.3083]
[1766317248616,0.21332445,3000.4,2998.8,0.001]
[1766317249014,0.21332445,3000.4,2999.2,1.3083]
[1766317249540,0.21332445,3000.4,2998.8,0.001]
[1766317249821,0.21332445,3000.4,2999.3,0.35]
[1766317250018,0.21332445,3000.4,2999.4,1.3083]
[1766317252561,0.321,3000.3,2999.5,0.35]
[1766317252762,0.321,3000.3,2999.6,1.3083]
[1766317253258,0.321,3000.2,2999.6,1.3083]
[1766317253666,0.321,3000.2,2998.8,0.001]
[1766317253876,0.643,3000.2,2999.7,1.3083]
[1766317261756,0.322,3000.2,2999.7,1.3083]
[1766317262057,0.405504,3001.0,2999.4,0.001]
[1766317262058,0.643,3000.1,2999.4,0.001]
[1766317262277,0.322,3000.4,2999.4,0.001]
[1766317262440,0.322,3000.4,2999.7,0.9583]
[1766317262636,0.322,3000.4,2999.9,0.9583]
[1766317262952,0.322,3000.4,2999.9,1.3083]
[1766317263665,0.322,3000.4,2999.4,0.001]
[1766317264058,0.322,3000.4,2999.6,0.35]
[1766317264259,0.322,3000.4,2999.7,1.3083]
[1766317264969,0.322,3000.5,2999.7,1.3083]
[1766317265141,0.386,3000.3,2999.5,0.9811]
[1766317265346,0.386,3000.3,2999.8,0.3644]
[1766317265538,0.386,3000.3,2999.8,1.3455]
[1766317268666,0.386,3000.3,2999.5,1.3455]
[1766317268873,0.386,3000.3,2999.6,0.3644]
[1766317269073,0.386,3000.3,2999.9,0.9811]
[1766317269273,0.386,3000.3,2999.9,1.3455]
[1766317269643,0.322,3000.5,2999.5,0.9811]
[1766317269871,0.322,3000.5,3000.0,0.3644]
[1766317270071,0.386,3000.4,3000.1,1.3455]
[1766317271475,0.388,3000.4,3000.1,1.3455]
[1766317272355,0.002,3000.4,3000.1,1.3455]
[1766317274346,0.002,3000.4,2999.7,0.3644]
[1766317274648,0.002,3000.4,2999.5,0.384]
[1766317274649,0.002,3000.4,3000.0,1.3455]
[1766317275688,0.002,3000.4,2999.5,0.384]
[1766317276666,0.002,3000.4,2999.6,1.3455]
[1766317276867,0.002,3000.4,2999.9,0.3644]
[1766317277196,0.002,3000.4,2999.9,1.3455]
[1766317281647,0.002,3000.4,2999.5,0.384]
[1766317281870,0.002,3000.4,2999.8,0.9811]
[1766317282075,0.323,3000.8,3000.3,0.3644]
[1766317282290,1.3041,3000.8,3000.3,1.3455]
[1766317284886,1.3041,3000.8,2999.6,0.384]
[1766317285082,1.3041,3000.8,2999.7,1.3455]
[1766317285289,0.323,3000.8,3000.1,0.9811]
[1766317285446,1.32466108,3000.8,3000.1,1.3455]
[1766317285652,0.002,3000.4,3000.1,1.3455]
[1766317297296,0.002,3000.4,2999.9,1.3046]
[1766317297831,0.002,3000.4,3000.0,1.3036]
[1766317300401,0.002,3000.4,3000.0,1.3046]
[1766317305412,0.002,3000.4,3000.2,0.3565]
[1766317305625,0.002,3000.4,3000.2,1.3036]
[1766317309841,0.002,3000.4,3000.0,0.001]
[1766317310239,0.002,3000.4,3000.1,1.3036]
[1766317321763,0.002,3000.4,3000.0,0.001]
[1766317322054,0.324,3000.8,3000.0,0.001]
[1766317322258,1.1591339,3001.1,3000.0,0.001]
[1766317322259,1.1591339,3001.1,3000.1,0.3565]
[1766317322433,0.383,3000.8,3000.1,0.3565]
[1766317324037,0.383,3000.8,3000.2,0.9471]
[1766317324242,0.383,3000.8,3000.4,0.9471]
[1766317324438,0.383,3000.8,3000.4,1.3036]
[1766317327747,0.383,3000.8,3000.1,1.2538]
[1766317327947,0.324,3001.0,3000.0,0.001]
[1766317328177,1.00154404,3000.9,3000.2,0.3416]
[1766317328376,1.00154404,3000.9,3000.4,1.2538]
[1766317331167,1.00154404,3000.9,3000.1,0.9122]
[1766317331369,1.00154404,3000.9,3000.4,0.001]
[1766317331563,1.00154404,3000.9,3000.5,1.2538]
[1766317331765,1.00354404,3000.9,3000.5,1.2538]
[1766317332063,1.00354404,3000.9,3000.4,0.001]
[1766317332272,1.00354404,3000.9,3000.6,0.3416]
[1766317332590,1.00354404,3000.9,3000.6,1.2538]
[1766317334798,0.002,3001.4,3000.5,1.2538]
[1766317334961,0.326,3001.4,3000.5,0.9122]
[1766317335167,0.326,3001.4,3000.8,1.2538]
[1766317335666,1.00140029,3001.3,3000.8,1.2538]
[1766317336070,1.00140029,3001.3,3000.5,1.2538]
[1766317336272,1.00140029,3001.3,3001.0,0.3416]
[1766317336477,1.00140029,3001.3,3000.4,0.001]
[1766317336704,0.326,3001.4,3000.4,0.001]
[1766317337003,0.381,3001.3,3000.4,0.001]
[1766317338603,0.381,3001.3,3000.7,0.9122]
[1766317338805,0.381,3001.3,3000.9,0.9122]
[1766317339012,0.381,3001.3,3001.0,1.2538]
[1766317341114,0.383,3001.3,3001.0,1.2538]
[1766317341975,0.383,3001.3,3000.4,0.001]
[1766317342180,0.383,3001.3,3000.7,0.9122]
[1766317342394,0.383,3001.3,3000.8,0.9122]
[1766317342589,0.383,3001.3,3000.9,1.2538]
[1766317342823,0.002,3001.3,3000.9,1.2538]
[1766317343005,0.383,3001.2,3000.9,1.2538]
[1766317348733,0.385,3001.2,3000.9,1.2538]
[1766317351200,0.002,3001.2,3000.9,1.2538]
[1766317351401,0.385,3001.1,3000.9,1.2538]
[1766317353223,0.385,3001.1,3000.4,0.001]
[1766317353529,0.385,3001.1,3000.6,0.3701]
[1766317353823,0.385,3001.1,3000.7,1.3654]
[1766317359841,0.385,3001.1,3000.4,0.001]
[1766317360007,0.385,3001.1,3000.4,0.3631]
[1766317360209,0.385,3001.1,3000.4,1.3448]
[1766317360931,0.385,3001.1,3000.4,0.001]
[1766317365029,0.385,3001.1,3000.4,0.3631]
[1766317365375,0.385,3001.1,3000.3,0.9817]
[1766317367463,0.385,3001.1,3000.4,0.3621]
[1766317367632,0.385,3001.1,3000.5,0.9817]
[1766317367835,0.385,3001.1,3000.5,0.6196]
[1766317368256,0.5364,3001.1,3000.5,0.1355375]
[1766317368628,0.1534,3001.1,3000.5,0.1355375]
[1766317368828,0.38,3001.0,3000.4,0.3631]